[Event "Titled Tuesday Blitz August 09 Early 2022"]
[White "Yaksin, Oleg"]
[Black "Donchenko, Alexander"]
[WhiteFideId "24105880"]
[BlackFideId "24603295"]
[WhiteElo "2256"]
[BlackElo "2572"]
[Result "0-1"]
[Round "04"]
[TimeControl "180+1"]
[Date "2022.08.09"]
[WhiteClock "0:00:04"]
[BlackClock "0:01:33"]

1. d4 {[%clk 0:02:34]}  d5 {[%clk 0:02:59]} 2. c4 {[%clk 0:02:32]}  e6 {[%clk 0:02:59]} 3. Nf3 {[%clk 0:02:29]}  Nf6 {[%clk 0:02:59]} 4. g3 {[%clk 0:02:29]}  Bb4+ {[%clk 0:02:57]} 5. Bd2 {[%clk 0:02:29]}  Bd6 {[%clk 0:02:57]} 6. Qc2 {[%clk 0:02:28]}  O-O {[%clk 0:02:57]} 7. Bg2 {[%clk 0:02:29]}  c6 {[%clk 0:02:56]} 8. O-O {[%clk 0:02:29]}  Nbd7 {[%clk 0:02:57]} 9. Rd1 {[%clk 0:02:20]}  b6 {[%clk 0:02:56]} 10. Bg5 {[%clk 0:02:16]}  Ba6 {[%clk 0:02:53]} 11. cxd5 {[%clk 0:02:06]}  cxd5 {[%clk 0:02:53]} 12. Qa4 {[%clk 0:01:58]}  Bxe2 {[%clk 0:02:52]} 13. Re1 {[%clk 0:01:56]}  Bxf3 {[%clk 0:02:52]} 14. Bxf3 {[%clk 0:01:55]}  h6 {[%clk 0:02:53]} 15. Be3 {[%clk 0:01:54]}  a6 {[%clk 0:02:46]} 16. Qb3 {[%clk 0:01:45]}  Qc7 {[%clk 0:02:41]} 17. Nc3 {[%clk 0:01:44]}  b5 {[%clk 0:02:40]} 18. Ne2 {[%clk 0:01:41]}  Nb6 {[%clk 0:02:38]} 19. Nf4 {[%clk 0:01:31]}  Nc4 {[%clk 0:02:38]} 20. Nd3 {[%clk 0:01:22]}  Qb6 {[%clk 0:02:35]} 21. Qd1 {[%clk 0:01:11]}  Rac8 {[%clk 0:02:32]} 22. b3 {[%clk 0:01:10]}  Nxe3 {[%clk 0:02:31]} 23. fxe3 {[%clk 0:01:10]}  Rfe8 {[%clk 0:02:29]} 24. Qd2 {[%clk 0:01:07]}  e5 {[%clk 0:02:27]} 25. dxe5 {[%clk 0:01:03]}  Bxe5 {[%clk 0:02:28]} 26. Nxe5 {[%clk 0:01:03]}  Rxe5 {[%clk 0:02:29]} 27. Qd4 {[%clk 0:00:54]}  Qe6 {[%clk 0:02:29]} 28. Rad1 {[%clk 0:00:51]}  Re8 {[%clk 0:02:28]} 29. Re2 {[%clk 0:00:36]}  h5 {[%clk 0:02:22]} 30. Rde1 {[%clk 0:00:30]}  Qf5 {[%clk 0:02:17]} 31. Qf4 {[%clk 0:00:20]}  Qe6 {[%clk 0:02:14]} 32. Kg2 {[%clk 0:00:15]}  Ng4 {[%clk 0:02:09]} 33. Bxg4 {[%clk 0:00:15]}  hxg4 {[%clk 0:02:09]} 34. Kg1 {[%clk 0:00:13]}  Re4 {[%clk 0:02:08]} 35. Qf2 {[%clk 0:00:13]}  d4 {[%clk 0:02:04]} 36. a4 {[%clk 0:00:10]}  dxe3 {[%clk 0:02:02]} 37. Qg2 {[%clk 0:00:11]}  bxa4 {[%clk 0:02:02]} 38. bxa4 {[%clk 0:00:11]}  a5 {[%clk 0:02:01]} 39. Qf1 {[%clk 0:00:08]}  Qd5 {[%clk 0:01:51]} 40. Rd1 {[%clk 0:00:07]}  Rd4 {[%clk 0:01:50]} 41. Rde1 {[%clk 0:00:07]}  Rde4 {[%clk 0:01:46]} 42. Rd1 {[%clk 0:00:06]}  Qc4 {[%clk 0:01:46]} 43. Qe1 {[%clk 0:00:05]}  Qxa4 {[%clk 0:01:45]} 44. Rd3 {[%clk 0:00:06]}  Qb4 {[%clk 0:01:44]} 45. Kg2 {[%clk 0:00:03]}  Qxe1 {[%clk 0:01:44]} 46. Rxe1 {[%clk 0:00:04]}  e2 {[%clk 0:01:44]} 47. Ra3 {[%clk 0:00:04]}  a4 {[%clk 0:01:44]} 48. Kf2 {[%clk 0:00:04]}  Kf8 {[%clk 0:01:44]} 49. Kg2 {[%clk 0:00:04]}  R8e7 {[%clk 0:01:44]} 50. h3 {[%clk 0:00:05]}  gxh3+ {[%clk 0:01:43]} 51. Kxh3 {[%clk 0:00:06]}  Ke8 {[%clk 0:01:44]} 52. Kg2 {[%clk 0:00:06]}  Kd7 {[%clk 0:01:44]} 53. Kf3 {[%clk 0:00:07]}  Kc6 {[%clk 0:01:44]} 54. Rd3 {[%clk 0:00:07]}  Kb5 {[%clk 0:01:41]} 55. Rd8 {[%clk 0:00:08]}  a3 {[%clk 0:01:39]} 56. Rb8+ {[%clk 0:00:07]}  Ka4 {[%clk 0:01:36]} 57. Rb6 {[%clk 0:00:05]}  Rb4 {[%clk 0:01:34]} 58. Ra6+ {[%clk 0:00:05]}  Kb3 {[%clk 0:01:35]} 59. Kf2 {[%clk 0:00:04]}  Kb2 {[%clk 0:01:33]} 0-1


[Site "https://www.chess.com"]

[Event "Titled Tuesday Blitz August 09 Early 2022"]
[White "Zamorano, Jorge"]
[Black "Ezov"]
[WhiteFideId "173770"]
[WhiteElo "2331"]
[BlackElo "2342"]
[Result "1-0"]
[Round "04"]
[TimeControl "180+1"]
[Date "2022.08.09"]
[WhiteClock "0:00:39"]
[BlackClock "0:01:06"]

1. d4 {[%clk 0:03:00]}  d5 {[%clk 0:02:59]} 2. c4 {[%clk 0:03:00]}  c6 {[%clk 0:02:59]} 3. Nc3 {[%clk 0:03:00]}  Nf6 {[%clk 0:02:58]} 4. Nf3 {[%clk 0:03:00]}  e6 {[%clk 0:02:58]} 5. e3 {[%clk 0:03:00]}  Be7 {[%clk 0:02:57]} 6. Qc2 {[%clk 0:02:55]}  O-O {[%clk 0:02:55]} 7. b3 {[%clk 0:02:56]}  Nbd7 {[%clk 0:02:46]} 8. Be2 {[%clk 0:02:55]}  b6 {[%clk 0:02:44]} 9. O-O {[%clk 0:02:56]}  Bb7 {[%clk 0:02:43]} 10. Bb2 {[%clk 0:02:56]}  Rc8 {[%clk 0:02:41]} 11. e4 {[%clk 0:02:55]}  dxe4 {[%clk 0:02:38]} 12. Nxe4 {[%clk 0:02:55]}  Nxe4 {[%clk 0:02:37]} 13. Qxe4 {[%clk 0:02:55]}  Nf6 {[%clk 0:02:37]} 14. Qe3 {[%clk 0:02:09]}  c5 {[%clk 0:02:33]} 15. Rad1 {[%clk 0:02:09]}  cxd4 {[%clk 0:02:31]} 16. Nxd4 {[%clk 0:02:03]}  Qc7 {[%clk 0:02:26]} 17. Nb5 {[%clk 0:01:51]}  Qb8 {[%clk 0:02:26]} 18. Be5 {[%clk 0:01:47]}  Qa8 {[%clk 0:02:16]} 19. Qg3 {[%clk 0:01:44]}  a6 {[%clk 0:02:09]} 20. Rd7 {[%clk 0:01:24]}  axb5 {[%clk 0:01:31]} 21. Rxe7 {[%clk 0:01:22]}  Nh5 {[%clk 0:01:28]} 22. Bxh5 {[%clk 0:01:20]}  g6 {[%clk 0:01:27]} 23. Qg5 {[%clk 0:01:02]}  f6 {[%clk 0:01:16]} 24. Bxf6 {[%clk 0:00:49]}  Rf7 {[%clk 0:01:09]} 25. Bxg6 {[%clk 0:00:42]}  Rxe7 {[%clk 0:01:06]} 26. Bh5+ {[%clk 0:00:39]} 1-0


[Site "https://www.chess.com"]

[Event "Titled Tuesday Blitz August 09 Early 2022"]
[White "Zemlyanskii, Ivan"]
[Black "Sztokbant, Bernardo Vainzoff"]
[WhiteFideId "24249971"]
[BlackFideId "2115956"]
[WhiteElo "1879"]
[BlackElo "2209"]
[Result "1-0"]
[Round "04"]
[TimeControl "180+1"]
[Date "2022.08.09"]
[WhiteClock "0:01:39"]
[BlackClock "0:01:12"]

1. d4 {[%clk 0:03:00]}  d6 {[%clk 0:03:00]} 2. Nf3 {[%clk 0:02:59]}  Nf6 {[%clk 0:03:00]} 3. c4 {[%clk 0:02:59]}  g6 {[%clk 0:03:00]} 4. Nc3 {[%clk 0:02:59]}  Bg7 {[%clk 0:03:01]} 5. e4 {[%clk 0:02:59]}  O-O {[%clk 0:03:01]} 6. Be2 {[%clk 0:02:59]}  e5 {[%clk 0:03:01]} 7. O-O {[%clk 0:02:59]}  exd4 {[%clk 0:03:02]} 8. Nxd4 {[%clk 0:02:57]}  Re8 {[%clk 0:03:02]} 9. f3 {[%clk 0:02:54]}  Nc6 {[%clk 0:03:02]} 10. Be3 {[%clk 0:02:53]}  Nh5 {[%clk 0:02:56]} 11. f4 {[%clk 0:02:52]}  Nf6 {[%clk 0:02:40]} 12. Bf3 {[%clk 0:02:46]}  Nd7 {[%clk 0:02:36]} 13. Qd2 {[%clk 0:02:42]}  Nc5 {[%clk 0:02:33]} 14. Rad1 {[%clk 0:02:34]}  Bd7 {[%clk 0:02:26]} 15. b3 {[%clk 0:02:33]}  Qc8 {[%clk 0:02:23]} 16. h3 {[%clk 0:02:23]}  Ne6 {[%clk 0:02:13]} 17. Nxe6 {[%clk 0:02:21]}  fxe6 {[%clk 0:02:08]} 18. c5 {[%clk 0:02:15]}  dxc5 {[%clk 0:01:56]} 19. Bxc5 {[%clk 0:02:13]}  Rd8 {[%clk 0:01:45]} 20. e5 {[%clk 0:02:08]}  Be8 {[%clk 0:01:43]} 21. Qf2 {[%clk 0:02:07]}  Bh6 {[%clk 0:01:31]} 22. Qh4 {[%clk 0:02:01]}  Bg7 {[%clk 0:01:30]} 23. Ne4 {[%clk 0:02:00]}  Kh8 {[%clk 0:01:18]} 24. Nf6 {[%clk 0:01:57]}  h6 {[%clk 0:01:16]} 25. Be4 {[%clk 0:01:54]}  Bf7 {[%clk 0:01:16]} 26. Qg3 {[%clk 0:01:45]}  Bxf6 {[%clk 0:01:14]} 27. exf6 {[%clk 0:01:46]}  Kh7 {[%clk 0:01:15]} 28. h4 {[%clk 0:01:42]}  h5 {[%clk 0:01:14]} 29. Qg5 {[%clk 0:01:41]}  Rxd1 {[%clk 0:01:11]} 30. Rxd1 {[%clk 0:01:40]}  Qe8 {[%clk 0:01:11]} 31. Qxh5+ {[%clk 0:01:39]}  Kg8 {[%clk 0:01:12]} 32. Qh6 {[%clk 0:01:39]} 1-0


[Site "https://www.chess.com"]

[Event "Titled Tuesday Blitz August 09 Early 2022"]
[White "Zhukov, Maksim"]
[Black "Kiseljova, Marya"]
[WhiteFideId "34181790"]
[BlackFideId "4155009"]
[WhiteElo "1978"]
[BlackElo "1697"]
[Result "1-0"]
[Round "04"]
[TimeControl "180+1"]
[Date "2022.08.09"]
[WhiteClock "0:00:40"]
[BlackClock "0:00:05"]

1. d4 {[%clk 0:03:00]}  d5 {[%clk 0:03:00]} 2. c4 {[%clk 0:03:00]}  e6 {[%clk 0:03:00]} 3. Nf3 {[%clk 0:03:00]}  c5 {[%clk 0:03:01]} 4. g3 {[%clk 0:02:59]}  Nc6 {[%clk 0:03:00]} 5. Bg2 {[%clk 0:02:59]}  Nf6 {[%clk 0:02:58]} 6. Nc3 {[%clk 0:03:00]}  cxd4 {[%clk 0:02:54]} 7. Nxd4 {[%clk 0:03:01]}  Bc5 {[%clk 0:02:54]} 8. Nb3 {[%clk 0:03:01]}  Bb4 {[%clk 0:02:48]} 9. O-O {[%clk 0:02:56]}  Bxc3 {[%clk 0:02:27]} 10. bxc3 {[%clk 0:02:55]}  dxc4 {[%clk 0:02:28]} 11. Qxd8+ {[%clk 0:02:54]}  Nxd8 {[%clk 0:02:28]} 12. Na5 {[%clk 0:02:51]}  Nd5 {[%clk 0:02:22]} 13. Nxc4 {[%clk 0:02:29]}  Nxc3 {[%clk 0:02:19]} 14. Nd6+ {[%clk 0:02:29]}  Kf8 {[%clk 0:02:04]} 15. Ba3 {[%clk 0:02:22]}  Nxe2+ {[%clk 0:02:02]} 16. Kh1 {[%clk 0:02:22]}  Kg8 {[%clk 0:02:03]} 17. Rfe1 {[%clk 0:02:18]}  Nd4 {[%clk 0:01:54]} 18. Rac1 {[%clk 0:02:16]}  N8c6 {[%clk 0:01:49]} 19. Red1 {[%clk 0:02:08]}  e5 {[%clk 0:01:43]} 20. f4 {[%clk 0:01:53]}  Bg4 {[%clk 0:01:22]} 21. Rd2 {[%clk 0:01:39]}  Bf3 {[%clk 0:00:55]} 22. fxe5 {[%clk 0:01:19]}  Bxg2+ {[%clk 0:00:40]} 23. Kxg2 {[%clk 0:01:20]}  h5 {[%clk 0:00:25]} 24. Nxb7 {[%clk 0:01:13]}  Re8 {[%clk 0:00:20]} 25. Bb2 {[%clk 0:01:08]}  Re7 {[%clk 0:00:16]} 26. Nd6 {[%clk 0:01:08]}  Rxe5 {[%clk 0:00:04]} 27. Bxd4 {[%clk 0:00:53]}  Nxd4 {[%clk 0:00:05]} 28. Rc8+ {[%clk 0:00:47]}  Kh7 {[%clk 0:00:05]} 29. Rxh8+ {[%clk 0:00:48]}  Kxh8 {[%clk 0:00:06]} 30. Nxf7+ {[%clk 0:00:49]}  Kg8 {[%clk 0:00:05]} 31. Nxe5 {[%clk 0:00:49]}  Nb5 {[%clk 0:00:05]} 32. Rd8+ {[%clk 0:00:46]}  Kh7 {[%clk 0:00:05]} 33. Rd7 {[%clk 0:00:47]}  Nc3 {[%clk 0:00:05]} 34. Rxa7 {[%clk 0:00:47]}  Ne4 {[%clk 0:00:05]} 35. a4 {[%clk 0:00:46]}  Nc5 {[%clk 0:00:05]} 36. a5 {[%clk 0:00:46]}  Ne6 {[%clk 0:00:06]} 37. a6 {[%clk 0:00:46]}  h4 {[%clk 0:00:05]} 38. Ra8 {[%clk 0:00:44]}  Kh6 {[%clk 0:00:05]} 39. a7 {[%clk 0:00:44]}  hxg3 {[%clk 0:00:04]} 40. Rh8+ {[%clk 0:00:43]}  Kg5 {[%clk 0:00:04]} 41. a8=Q {[%clk 0:00:44]}  Nf4+ {[%clk 0:00:04]} 42. Kxg3 {[%clk 0:00:43]}  Nh5+ {[%clk 0:00:03]} 43. Rxh5+ {[%clk 0:00:42]}  Kxh5 {[%clk 0:00:04]} 44. Qe8+ {[%clk 0:00:40]}  Kg5 {[%clk 0:00:05]} 45. Qg6# {[%clk 0:00:40]} 1-0


[Site "https://www.chess.com"]

[Event "Titled Tuesday Blitz August 09 Early 2022"]
[White "Ziatdinov, Raset"]
[Black "Daeschler, Florian"]
[WhiteFideId "2015323"]
[BlackFideId "20678193"]
[WhiteElo "2220"]
[BlackElo "2187"]
[Result "0-1"]
[Round "04"]
[TimeControl "180+1"]
[Date "2022.08.09"]
[WhiteClock "0:00:17"]
[BlackClock "0:00:06"]

1. e4 {[%clk 0:03:00]}  c5 {[%clk 0:02:58]} 2. Nf3 {[%clk 0:03:00]}  d6 {[%clk 0:02:58]} 3. d4 {[%clk 0:02:59]}  cxd4 {[%clk 0:02:59]} 4. Nxd4 {[%clk 0:02:59]}  Nf6 {[%clk 0:02:59]} 5. Nc3 {[%clk 0:03:00]}  Nc6 {[%clk 0:02:59]} 6. Bg5 {[%clk 0:02:58]}  g6 {[%clk 0:02:59]} 7. Bc4 {[%clk 0:02:57]}  Bg7 {[%clk 0:02:58]} 8. Bxf6 {[%clk 0:02:55]}  Bxf6 {[%clk 0:02:57]} 9. Nxc6 {[%clk 0:02:55]}  bxc6 {[%clk 0:02:56]} 10. O-O {[%clk 0:02:56]}  O-O {[%clk 0:02:56]} 11. Kh1 {[%clk 0:02:54]}  Rb8 {[%clk 0:02:55]} 12. Rb1 {[%clk 0:02:52]}  Qb6 {[%clk 0:02:52]} 13. f4 {[%clk 0:02:50]}  Qd4 {[%clk 0:02:52]} 14. Bb3 {[%clk 0:02:47]}  Qxd1 {[%clk 0:02:50]} 15. Rbxd1 {[%clk 0:02:46]}  Ba6 {[%clk 0:02:48]} 16. Rfe1 {[%clk 0:02:45]}  Rfd8 {[%clk 0:02:28]} 17. g4 {[%clk 0:02:35]}  Bh4 {[%clk 0:02:20]} 18. Re3 {[%clk 0:02:30]}  Bf2 {[%clk 0:02:20]} 19. Rf3 {[%clk 0:02:30]}  Bc5 {[%clk 0:02:16]} 20. f5 {[%clk 0:02:30]}  gxf5 {[%clk 0:02:04]} 21. gxf5 {[%clk 0:02:16]}  Rb4 {[%clk 0:01:52]} 22. a3 {[%clk 0:02:11]}  Rd4 {[%clk 0:01:49]} 23. Rg3+ {[%clk 0:02:02]}  Kh8 {[%clk 0:01:25]} 24. Rxd4 {[%clk 0:01:54]}  Bxd4 {[%clk 0:01:24]} 25. Bxf7 {[%clk 0:01:55]}  Rb8 {[%clk 0:01:20]} 26. Bb3 {[%clk 0:01:53]}  Be5 {[%clk 0:01:16]} 27. Rf3 {[%clk 0:01:47]}  Kg7 {[%clk 0:01:12]} 28. Kg2 {[%clk 0:01:42]}  Kf6 {[%clk 0:01:11]} 29. Rh3 {[%clk 0:01:33]}  Kg7 {[%clk 0:01:05]} 30. Ne2 {[%clk 0:01:07]}  Bxe2 {[%clk 0:01:00]} 31. Re3 {[%clk 0:01:00]}  Ba6 {[%clk 0:00:57]} 32. Kh3 {[%clk 0:00:57]}  Bxb2 {[%clk 0:00:55]} 33. Rg3+ {[%clk 0:00:58]}  Kh8 {[%clk 0:00:54]} 34. Be6 {[%clk 0:00:57]}  Be5 {[%clk 0:00:52]} 35. Rg1 {[%clk 0:00:50]}  Be2 {[%clk 0:00:43]} 36. Re1 {[%clk 0:00:49]}  Bf3 {[%clk 0:00:37]} 37. Re3 {[%clk 0:00:48]}  Bh5 {[%clk 0:00:34]} 38. Bb3 {[%clk 0:00:47]}  Kg7 {[%clk 0:00:31]} 39. Re1 {[%clk 0:00:47]}  Bf7 {[%clk 0:00:30]} 40. Rg1+ {[%clk 0:00:46]}  Kf6 {[%clk 0:00:31]} 41. Ba4 {[%clk 0:00:43]}  Rb2 {[%clk 0:00:28]} 42. Rg2 {[%clk 0:00:41]}  c5 {[%clk 0:00:25]} 43. Bc6 {[%clk 0:00:35]}  Bc4 {[%clk 0:00:21]} 44. Kh4 {[%clk 0:00:32]}  Ra2 {[%clk 0:00:20]} 45. a4 {[%clk 0:00:29]}  Bd3 {[%clk 0:00:18]} 46. Rg8 {[%clk 0:00:25]}  Rxc2 {[%clk 0:00:10]} 47. h3 {[%clk 0:00:23]}  Bf4 {[%clk 0:00:06]} 48. Bd5 {[%clk 0:00:20]}  Ke5 {[%clk 0:00:06]} 49. Rg7 {[%clk 0:00:19]}  Rh2 {[%clk 0:00:06]} 50. Rxe7+ {[%clk 0:00:17]}  Kd4 {[%clk 0:00:07]} 51. Rxh7 {[%clk 0:00:18]}  Bf1 {[%clk 0:00:07]} 52. Kg4 {[%clk 0:00:18]}  Be5 {[%clk 0:00:06]} 53. h4 {[%clk 0:00:18]}  Rg2+ {[%clk 0:00:06]} 54. Kh5 {[%clk 0:00:17]}  Be2+ {[%clk 0:00:05]} 55. Kh6 {[%clk 0:00:17]}  Bf4# {[%clk 0:00:06]} 0-1


[Site "https://www.chess.com"]

[Event "Titled Tuesday Blitz August 09 Early 2022"]
[White "Altman, Joshua"]
[Black "Ibarra Jerez, Jose Carlos"]
[WhiteFideId "426210"]
[BlackFideId "2226332"]
[WhiteElo "1945"]
[BlackElo "2628"]
[Result "0-1"]
[Round "05"]
[TimeControl "180+1"]
[Date "2022.08.09"]
[WhiteClock "0:00:08"]
[BlackClock "0:00:19"]

1. d4 {[%clk 0:03:00]}  d5 {[%clk 0:02:58]} 2. c4 {[%clk 0:03:01]}  e6 {[%clk 0:02:59]} 3. Nc3 {[%clk 0:03:01]}  a6 {[%clk 0:02:59]} 4. cxd5 {[%clk 0:03:01]}  exd5 {[%clk 0:03:00]} 5. Nf3 {[%clk 0:03:02]}  Nf6 {[%clk 0:03:00]} 6. Bg5 {[%clk 0:03:02]}  Be6 {[%clk 0:02:59]} 7. Qc2 {[%clk 0:03:02]}  Nbd7 {[%clk 0:02:56]} 8. e3 {[%clk 0:03:02]}  Bd6 {[%clk 0:02:56]} 9. Bd3 {[%clk 0:03:02]}  c6 {[%clk 0:02:56]} 10. O-O {[%clk 0:03:02]}  Qc7 {[%clk 0:02:56]} 11. Bh4 {[%clk 0:02:58]}  Bg4 {[%clk 0:02:54]} 12. Bg3 {[%clk 0:02:59]}  O-O {[%clk 0:02:49]} 13. Nh4 {[%clk 0:02:52]}  Rfe8 {[%clk 0:02:42]} 14. Nf5 {[%clk 0:02:51]}  Bxf5 {[%clk 0:02:41]} 15. Bxf5 {[%clk 0:02:52]}  Bxg3 {[%clk 0:02:36]} 16. hxg3 {[%clk 0:02:53]}  Nf8 {[%clk 0:02:35]} 17. a4 {[%clk 0:02:46]}  a5 {[%clk 0:02:31]} 18. Rab1 {[%clk 0:02:45]}  Qd6 {[%clk 0:02:22]} 19. Rbd1 {[%clk 0:02:32]}  g6 {[%clk 0:02:20]} 20. Bd3 {[%clk 0:02:32]}  h5 {[%clk 0:02:10]} 21. Ne2 {[%clk 0:02:30]}  Ne6 {[%clk 0:02:02]} 22. Nf4 {[%clk 0:02:20]}  Kg7 {[%clk 0:01:51]} 23. Rfe1 {[%clk 0:02:11]}  Rh8 {[%clk 0:01:37]} 24. Re2 {[%clk 0:01:34]}  h4 {[%clk 0:01:33]} 25. Rde1 {[%clk 0:01:30]}  hxg3 {[%clk 0:01:29]} 26. fxg3 {[%clk 0:01:14]}  Rh6 {[%clk 0:01:25]} 27. Kf2 {[%clk 0:00:33]}  Ng4+ {[%clk 0:01:24]} 28. Kf3 {[%clk 0:00:34]}  Qd7 {[%clk 0:00:48]} 29. Nxe6+ {[%clk 0:00:15]}  Qxe6 {[%clk 0:00:48]} 30. e4 {[%clk 0:00:15]}  g5 {[%clk 0:00:29]} 31. exd5 {[%clk 0:00:11]}  Rf6+ {[%clk 0:00:27]} 32. Bf5 {[%clk 0:00:10]}  Rxf5+ {[%clk 0:00:19]} 33. Kxg4 {[%clk 0:00:10]}  Rf4+ {[%clk 0:00:19]} 34. Kxg5 {[%clk 0:00:08]}  Qf6+ {[%clk 0:00:19]} 35. Kh5 {[%clk 0:00:08]}  Rh8+ {[%clk 0:00:19]} 0-1


[Site "https://www.chess.com"]

[Event "Titled Tuesday Blitz August 09 Early 2022"]
[White "Andreikin, Dmitry"]
[Black "Makarian, Rudik"]
[WhiteFideId "4158814"]
[BlackFideId "44105681"]
[WhiteElo "2736"]
[BlackElo "2403"]
[Result "1-0"]
[Round "05"]
[TimeControl "180+1"]
[Date "2022.08.09"]
[WhiteClock "0:00:20"]
[BlackClock "0:00:10"]

1. Nf3 {[%clk 0:03:00]}  Nf6 {[%clk 0:03:00]} 2. g3 {[%clk 0:03:01]}  b5 {[%clk 0:02:58]} 3. Na3 {[%clk 0:03:00]}  a6 {[%clk 0:02:56]} 4. c4 {[%clk 0:02:59]}  b4 {[%clk 0:02:56]} 5. Nc2 {[%clk 0:02:59]}  e6 {[%clk 0:02:56]} 6. Bg2 {[%clk 0:02:59]}  Bb7 {[%clk 0:02:56]} 7. O-O {[%clk 0:02:58]}  Be7 {[%clk 0:02:57]} 8. d4 {[%clk 0:02:58]}  O-O {[%clk 0:02:56]} 9. d5 {[%clk 0:02:58]}  exd5 {[%clk 0:02:32]} 10. Nh4 {[%clk 0:02:58]}  c6 {[%clk 0:02:28]} 11. cxd5 {[%clk 0:02:54]}  cxd5 {[%clk 0:02:23]} 12. Nf5 {[%clk 0:02:54]}  Nc6 {[%clk 0:02:22]} 13. Bf4 {[%clk 0:02:38]}  Re8 {[%clk 0:02:19]} 14. Nce3 {[%clk 0:02:33]}  Bf8 {[%clk 0:01:32]} 15. Rc1 {[%clk 0:02:24]}  Ne5 {[%clk 0:01:25]} 16. Nxd5 {[%clk 0:02:20]}  Nxd5 {[%clk 0:01:22]} 17. Bxd5 {[%clk 0:02:21]}  Bxd5 {[%clk 0:01:19]} 18. Qxd5 {[%clk 0:02:22]}  Ng6 {[%clk 0:01:20]} 19. e3 {[%clk 0:02:18]}  Qf6 {[%clk 0:01:18]} 20. b3 {[%clk 0:02:10]}  Rac8 {[%clk 0:01:03]} 21. h4 {[%clk 0:01:39]}  Nxf4 {[%clk 0:00:49]} 22. exf4 {[%clk 0:01:40]}  Rc3 {[%clk 0:00:43]} 23. Ne3 {[%clk 0:01:27]}  Qe6 {[%clk 0:00:32]} 24. f5 {[%clk 0:00:53]}  Qxd5 {[%clk 0:00:20]} 25. Nxd5 {[%clk 0:00:54]}  Rd3 {[%clk 0:00:21]} 26. Rfd1 {[%clk 0:00:46]}  Rxd1+ {[%clk 0:00:21]} 27. Rxd1 {[%clk 0:00:47]}  Re2 {[%clk 0:00:20]} 28. Nf4 {[%clk 0:00:34]}  Re5 {[%clk 0:00:16]} 29. Rd5 {[%clk 0:00:28]}  Rxd5 {[%clk 0:00:13]} 30. Nxd5 {[%clk 0:00:29]}  Bc5 {[%clk 0:00:12]} 31. Kg2 {[%clk 0:00:28]}  Kf8 {[%clk 0:00:12]} 32. g4 {[%clk 0:00:26]}  Ke8 {[%clk 0:00:10]} 33. g5 {[%clk 0:00:24]}  d6 {[%clk 0:00:10]} 34. f4 {[%clk 0:00:21]}  Kd7 {[%clk 0:00:11]} 35. Kf3 {[%clk 0:00:22]}  Kc6 {[%clk 0:00:10]} 36. Ke4 {[%clk 0:00:22]}  a5 {[%clk 0:00:10]} 37. h5 {[%clk 0:00:22]}  Bg1 {[%clk 0:00:10]} 38. g6 {[%clk 0:00:21]}  hxg6 {[%clk 0:00:10]} 39. fxg6 {[%clk 0:00:21]}  fxg6 {[%clk 0:00:10]} 40. hxg6 {[%clk 0:00:21]}  Kd7 {[%clk 0:00:10]} 41. f5 {[%clk 0:00:21]}  Bh2 {[%clk 0:00:11]} 42. f6 {[%clk 0:00:20]}  gxf6 {[%clk 0:00:10]} 43. g7 {[%clk 0:00:20]} 1-0


[Site "https://www.chess.com"]

[Event "Titled Tuesday Blitz August 09 Early 2022"]
[White "Antonio, Rogelio Jr"]
[Black "Janaszak, Dawid"]
[WhiteFideId "5200032"]
[BlackFideId "1119206"]
[WhiteElo "2415"]
[BlackElo "2165"]
[Result "1/2-1/2"]
[Round "05"]
[TimeControl "180+1"]
[Date "2022.08.09"]
[WhiteClock "0:00:38"]
[BlackClock "0:00:15"]

1. e4 {[%clk 0:03:00]}  c5 {[%clk 0:02:59]} 2. d4 {[%clk 0:03:00]}  cxd4 {[%clk 0:02:57]} 3. c3 {[%clk 0:03:01]}  e5 {[%clk 0:02:55]} 4. Nf3 {[%clk 0:02:58]}  Nc6 {[%clk 0:02:54]} 5. cxd4 {[%clk 0:02:58]}  exd4 {[%clk 0:02:54]} 6. Nxd4 {[%clk 0:02:57]}  Nf6 {[%clk 0:02:53]} 7. Nc3 {[%clk 0:02:57]}  Bb4 {[%clk 0:02:53]} 8. Nxc6 {[%clk 0:02:56]}  bxc6 {[%clk 0:02:52]} 9. Bd3 {[%clk 0:02:56]}  d5 {[%clk 0:02:52]} 10. exd5 {[%clk 0:02:52]}  Qe7+ {[%clk 0:02:41]} 11. Kf1 {[%clk 0:02:37]}  cxd5 {[%clk 0:02:28]} 12. Bb5+ {[%clk 0:02:31]}  Bd7 {[%clk 0:02:14]} 13. Bxd7+ {[%clk 0:02:21]}  Qxd7 {[%clk 0:02:15]} 14. Qe2+ {[%clk 0:02:17]}  Be7 {[%clk 0:02:08]} 15. Bg5 {[%clk 0:02:11]}  O-O {[%clk 0:02:06]} 16. Rd1 {[%clk 0:02:12]}  d4 {[%clk 0:01:53]} 17. Bxf6 {[%clk 0:01:59]}  Bxf6 {[%clk 0:01:51]} 18. Ne4 {[%clk 0:01:59]}  Qc6 {[%clk 0:01:40]} 19. Qf3 {[%clk 0:01:52]}  Be5 {[%clk 0:01:36]} 20. g3 {[%clk 0:01:49]}  Qa6+ {[%clk 0:01:30]} 21. Kg2 {[%clk 0:01:47]}  Qxa2 {[%clk 0:01:30]} 22. Rd2 {[%clk 0:01:38]}  Rad8 {[%clk 0:01:26]} 23. Re1 {[%clk 0:01:37]}  Qd5 {[%clk 0:01:24]} 24. Ng5 {[%clk 0:01:25]}  Qxf3+ {[%clk 0:01:24]} 25. Nxf3 {[%clk 0:01:25]}  Bf6 {[%clk 0:01:22]} 26. Red1 {[%clk 0:01:25]}  Rd5 {[%clk 0:01:22]} 27. Ra1 {[%clk 0:01:23]}  a5 {[%clk 0:01:19]} 28. Ra4 {[%clk 0:01:22]}  Rfd8 {[%clk 0:01:13]} 29. Rd3 {[%clk 0:01:22]}  g6 {[%clk 0:01:11]} 30. h4 {[%clk 0:01:22]}  h6 {[%clk 0:01:11]} 31. Nd2 {[%clk 0:01:17]}  Rc8 {[%clk 0:00:59]} 32. Nc4 {[%clk 0:01:13]}  Rcc5 {[%clk 0:00:58]} 33. b3 {[%clk 0:01:12]}  Kg7 {[%clk 0:00:55]} 34. f4 {[%clk 0:01:04]}  h5 {[%clk 0:00:54]} 35. Kf3 {[%clk 0:01:03]}  Bd8 {[%clk 0:00:49]} 36. Ne5 {[%clk 0:00:54]}  Bc7 {[%clk 0:00:45]} 37. Rdxd4 {[%clk 0:00:48]}  Bxe5 {[%clk 0:00:43]} 38. Rxd5 {[%clk 0:00:46]}  Rxd5 {[%clk 0:00:44]} 39. fxe5 {[%clk 0:00:46]}  Rxe5 {[%clk 0:00:43]} 40. b4 {[%clk 0:00:45]}  axb4 {[%clk 0:00:41]} 41. Rxb4 {[%clk 0:00:46]}  Ra5 {[%clk 0:00:41]} 42. Rc4 {[%clk 0:00:46]}  Kf6 {[%clk 0:00:40]} 43. Rb4 {[%clk 0:00:46]}  Ra3+ {[%clk 0:00:35]} 44. Kg2 {[%clk 0:00:45]}  Rd3 {[%clk 0:00:34]} 45. Kh3 {[%clk 0:00:45]}  Ke6 {[%clk 0:00:32]} 46. Rb6+ {[%clk 0:00:44]}  Ke5 {[%clk 0:00:31]} 47. Rb5+ {[%clk 0:00:44]}  Rd5 {[%clk 0:00:32]} 48. Rb7 {[%clk 0:00:44]}  f6 {[%clk 0:00:31]} 49. Re7+ {[%clk 0:00:43]}  Kf5 {[%clk 0:00:31]} 50. Re3 {[%clk 0:00:43]}  g5 {[%clk 0:00:29]} 51. hxg5 {[%clk 0:00:42]}  fxg5 {[%clk 0:00:30]} 52. Ra3 {[%clk 0:00:42]}  Rd2 {[%clk 0:00:28]} 53. Ra5+ {[%clk 0:00:42]}  Kf6 {[%clk 0:00:28]} 54. Ra6+ {[%clk 0:00:42]}  Ke5 {[%clk 0:00:26]} 55. Ra5+ {[%clk 0:00:43]}  Rd5 {[%clk 0:00:24]} 56. Ra3 {[%clk 0:00:42]}  Kf5 {[%clk 0:00:24]} 57. Rf3+ {[%clk 0:00:41]}  Kg6 {[%clk 0:00:24]} 58. Ra3 {[%clk 0:00:41]}  Rf5 {[%clk 0:00:21]} 59. Ra6+ {[%clk 0:00:41]}  Rf6 {[%clk 0:00:21]} 60. Ra3 {[%clk 0:00:41]}  Re6 {[%clk 0:00:21]} 61. Rb3 {[%clk 0:00:41]}  Kf5 {[%clk 0:00:21]} 62. Rb5+ {[%clk 0:00:41]}  Re5 {[%clk 0:00:21]} 63. Rb3 {[%clk 0:00:40]}  h4 {[%clk 0:00:19]} 64. gxh4 {[%clk 0:00:38]}  gxh4 {[%clk 0:00:17]} 65. Kxh4 {[%clk 0:00:38]}  Kf4 {[%clk 0:00:15]} 1/2-1/2


[Site "https://www.chess.com"]